fUSD/lending_fUSD_20260408
["ID","MTS","AMOUNT","RATE_DAILY","PERIOD"]
[420060090,1775640648682,-150.0,0.00015569,2]
[420060091,1775640648692,-150.0,0.00015571,2]
[420060092,1775640648704,-150.0,0.00015584,2]
[420060093,1775640648714,-500.0,0.00015584,2]
[420060094,1775640648724,-151.0,0.00015584,2]
[420060095,1775640648734,-350.0,0.00015585,2]
[420060096,1775640648743,-150.0,0.00015587,2]
[420060097,1775640648752,-150.0,0.00015591,2]
[420060098,1775640648762,-150.0,0.000156,2]
[420060099,1775640648771,-150.0,0.000156,2]
[420060100,1775640648781,-150.0,0.000156,2]
[420060101,1775640648791,-150.0,0.00015605,2]
[420060102,1775640648801,-150.0,0.0001561,2]
[420060103,1775640648810,-150.0,0.00015613,2]
[420060104,1775640648819,-150.0,0.00015619,2]
[420060105,1775640648830,-150.0,0.00015626,2]
[420060106,1775640648839,-150.0,0.00015627,2]
[420060107,1775640648849,-150.0,0.00015631,2]
[420060108,1775640648858,-150.0,0.00015631,2]
[420060109,1775640648867,-150.0,0.00015636,2]
[420060110,1775640648877,-150.0,0.00015639,2]
[420060111,1775640648886,-500.0,0.00015639,2]
[420060112,1775640648896,-151.0,0.00015639,2]
[420060113,1775640648905,-150.0,0.0001564,2]
[420060114,1775640648914,-150.0,0.00015649,2]
[420060115,1775640648924,-150.0,0.00015649,2]
[420060116,1775640648934,-186.0,0.00015649,3]
[420060117,1775640648943,-150.0,0.0001566,2]
[420060118,1775640648953,-150.0,0.00015662,2]
[420060119,1775640648962,-150.0,0.00015665,2]
[420060120,1775640648971,-150.0,0.00015671,2]
[420060121,1775640648981,-672.69163722,0.0001568,2]
[420060122,1775640648990,-150.0,0.0001568,2]
[420060123,1775640648999,-608.16,0.00015684,2]
[420060124,1775640649009,-2023.17,0.00015684,2]
[420060125,1775640649018,-150.0,0.00015688,2]
[420060126,1775640649027,-150.0,0.0001569,2]
[420060127,1775640649037,-150.0,0.00015692,2]
[420060128,1775640649047,-150.0,0.00015693,2]
[420060129,1775640649056,-150.0,0.00015694,2]
[420060130,1775640649065,-500.0,0.00015694,2]
[420060131,1775640649074,-151.0,0.00015694,2]
[420060132,1775640649084,-150.0,0.00015695,2]
[420060133,1775640649093,-150.0,0.00015709,2]
[420060134,1775640649103,-150.0,0.00015715,2]
[420060135,1775640649112,-150.0,0.00015716,2]
[420060136,1775640649121,-150.0,0.0001572,2]
[420060137,1775640649130,-150.0,0.00015723,2]
[420060138,1775640649139,-150.0,0.00015727,2]
[420060139,1775640649148,-150.0,0.00015728,2]
[420060140,1775640649158,-150.0,0.00015737,2]
[420060141,1775640649167,-150.0,0.00015742,2]
[420060142,1775640649176,-200.0,0.00015747,2]
[420060143,1775640649186,-187.78006525,0.00015747,2]
[420060144,1775640649195,-1280.88388878,0.00015747,2]
[420060145,1775640649204,-181.08010149,0.00015747,2]
[420060146,1775640649213,-591.41950389,0.00015747,2]
[420060147,1775640649221,-771.01748645,0.00015747,2]
[420060148,1775640649230,-500.0,0.00015749,2]
[420060149,1775640649239,-151.0,0.00015749,2]
[420060150,1775640649248,-3168.21,0.00015753,2]
[420060151,1775640649258,-150.0,0.00015754,2]
[420060152,1775640649267,-150.0,0.00015754,2]
[420060153,1775640649276,-150.0,0.00015759,2]
[420060154,1775640649286,-150.0,0.0001576,2]
[420060155,1775640649295,-150.0,0.00015762,2]
[420060156,1775640649304,-150.0,0.00015766,2]
[420060157,1775640649313,-150.0,0.00015768,2]
[420060158,1775640649322,-150.0,0.00015771,2]
[420060159,1775640649333,-150.0,0.00015781,2]
[420060160,1775640649342,-150.0,0.00015782,2]
[420060161,1775640649351,-150.0,0.00015785,2]
[420060162,1775640649360,-150.0,0.00015794,2]
[420060163,1775640649369,-150.0,0.00015796,2]
[420060164,1775640649378,-8898.0,0.000158,7]
[420060165,1775640649387,-150.0,0.000158,2]
[420060166,1775640649396,-150.0,0.00015803,2]
[420060167,1775640649405,-500.0,0.00015804,2]
[420060168,1775640649414,-151.0,0.00015804,2]
[420060169,1775640649423,-150.0,0.00015805,2]
[420060170,1775640649432,-500.0,0.00015808,2]
[420060171,1775640649441,-500.0,0.00015808,2]
[420060172,1775640649451,-396.4808442,0.00015808,2]
[420060173,1775640649460,-1000.0,0.00015811,2]
[420060174,1775640649469,-150.0,0.00015815,2]
[420060175,1775640649479,-150.0,0.00015819,2]
[420060176,1775640649488,-150.0,0.00015825,2]
[420060177,1775640649498,-150.0,0.0001583,2]
[420060178,1775640649508,-150.0,0.0001584,2]
[420060179,1775640649518,-2000.0,0.0001584,2]
[420060180,1775640649527,-2000.0,0.0001584,2]
[420060181,1775640649536,-150.0,0.00015844,2]
[420060182,1775640649546,-150.0,0.00015845,2]
[420060183,1775640649555,-150.0,0.00015846,2]
[420060184,1775640649564,-150.0,0.00015847,2]
[420060185,1775640649573,-150.0,0.00015848,2]
[420060186,1775640649583,-2000.0,0.0001585,2]
[420060187,1775640649592,-150.0,0.00015855,2]
[420060188,1775640649601,-500.0,0.00015859,2]
[420060189,1775640649611,-151.0,0.00015859,2]
[420060190,1775640649620,-163.8001,0.0001586,2]
[420060191,1775640649629,-2494.97,0.00015862,2]
[420060192,1775640649638,-150.0,0.00015864,2]
[420060193,1775640649647,-350.0,0.00015868,2]
[420060194,1775640649657,-150.0,0.00015868,2]
[420060195,1775640649667,-163.8001,0.0001587,2]
[420060196,1775640649676,-150.0,0.00015871,2]
[420060197,1775640649685,-200.0,0.00015871,2]
[420060198,1775640649694,-500.0,0.00015872,2]
[420060199,1775640649704,-500.0,0.00015872,2]
[420060200,1775640649713,-200.0,0.00015872,2]
[420060201,1775640649722,-150.0,0.00015877,2]
[420060202,1775640649731,-150.0,0.00015877,2]
[420060203,1775640649740,-150.0,0.0001588,2]
[420060204,1775640649750,-150.0,0.00015883,2]
[420060205,1775640649759,-500.0,0.0001589,2]
[420060206,1775640649769,-500.0,0.0001589,2]
[420060207,1775640649778,-500.0,0.0001589,2]
[420060208,1775640649787,-194.91667222,0.0001589,2]
[420060209,1775640649797,-150.0,0.0001589,2]
[420060210,1775640649806,-4000.0,0.00015895,2]
[420060211,1775640649815,-6453.0,0.00015895,2]
[420060212,1775640649824,-18832.3985687,0.00015896,2]
[420060213,1775640649834,-41111.4330156,0.00015896,2]
[420060214,1775640649844,-150.0,0.00015897,2]
[420060215,1775640649853,-150.0,0.00015898,2]
[420060216,1775640649863,-2129.0,0.00015899,2]
[420060217,1775640649872,-726.59562277,0.000159,2]
[420060218,1775640649880,-5466.42449105,0.000159,2]
[420060219,1775640649890,-2871.27931664,0.000159,2]
[420060220,1775640649900,-5327.3148707,0.000159,2]
[420060221,1775640649909,-11064.56198245,0.000159,2]
[420060222,1775640649918,-1272.0,0.000159,5]
[420060223,1775640649927,-1259.0,0.000159,5]
[420060224,1775640649936,-2000.0,0.000159,2]
[420060225,1775640649946,-150.0,0.00015908,2]
[420060226,1775640649956,-150.0,0.00015912,2]
[420060227,1775640649965,-500.0,0.00015914,2]
[420060228,1775640649975,-151.0,0.00015914,2]
[420060229,1775640649984,-150.0,0.0001592,2]
[420060230,1775640649994,-150.0,0.00015922,2]
[420060231,1775640650004,-150.0,0.00015923,2]
[420060232,1775640650013,-150.0,0.00015924,2]
[420060233,1775640650023,-150.0,0.00015927,2]
[420060234,1775640650032,-150.0,0.00015932,2]
[420060235,1775640650041,-150.0,0.00015934,2]
[420060236,1775640650051,-150.0,0.00015938,2]
[420060237,1775640650060,-150.0,0.00015938,2]
[420060238,1775640650069,-1000.0,0.00015943,2]
[420060239,1775640650079,-150.0,0.00015948,2]
[420060240,1775640650088,-1000.0,0.0001595,2]
[420060241,1775640650099,-150.0,0.00015956,2]
[420060242,1775640650108,-150.0,0.0001596,2]
[420060243,1775640650117,-150.0,0.00015961,2]
[420060244,1775640650127,-1000.0,0.00015964,2]
[420060245,1775640650136,-150.0,0.00015966,2]
[420060246,1775640650146,-500.0,0.00015969,2]
[420060247,1775640650156,-151.0,0.00015969,2]
[420060248,1775640650165,-150.0,0.00015969,2]
[420060249,1775640650175,-500.68397328,0.00015973,2]
[420060250,1775640650184,-246.25716228,0.00015973,2]
[420060251,1775640650193,-500.0,0.00015973,2]
[420060252,1775640650203,-500.0,0.00015973,2]
[420060253,1775640650212,-500.0,0.00015973,2]
[420060254,1775640650221,-500.0,0.00015973,2]
[420060255,1775640650231,-500.0,0.00015973,2]
[420060256,1775640650240,-500.0,0.00015973,2]
[420060257,1775640650249,-500.0,0.00015973,2]
[420060258,1775640650258,-288.28066678,0.00015973,2]
[420060259,1775640650267,-538.78941312,0.00015973,2]
[420060260,1775640650277,-500.0,0.00015973,2]
[420060261,1775640650286,-500.0,0.00015973,2]
[420060262,1775640650295,-500.0,0.00015973,2]
[420060263,1775640650304,-164.42313659,0.00015973,2]
[420060264,1775640650313,-500.0,0.00015973,2]
[420060265,1775640650322,-503.98766467,0.00015973,2]
[420060266,1775640650331,-474.64837932,0.00015973,2]
[420060267,1775640650340,-500.0,0.00015973,2]
[420060268,1775640650349,-500.0,0.00015973,2]
[420060269,1775640650358,-500.0,0.00015973,2]
[420060270,1775640650368,-500.0,0.00015973,2]
[420060271,1775640650376,-500.0,0.00015973,2]
[420060272,1775640650386,-150.0,0.00015974,2]
[420060273,1775640650395,-150.0,0.00015978,2]
[420060274,1775640650405,-434.94685124,0.00015981,2]
[420060275,1775640650414,-1353726.846724,0.00015991,2]
[420060276,1775640650423,-163.33,0.00015996,2]
[420060277,1775640650432,-151.0,0.00015997,2]
[420060278,1775640650441,-151.0,0.00015997,2]
[420060279,1775640650451,-151.0,0.00015997,2]
[420060280,1775640650460,-151.0,0.00015997,2]
[420060281,1775640650469,-666.0,0.00015999,2]
[420060282,1775640650478,-666.0,0.00015999,2]
[420060283,1775640650487,-666.0,0.00015999,2]
[420060284,1775640650496,-666.0,0.00015999,2]
[420060285,1775640650505,-755.31,0.00015999,2]
[420060286,1775640650515,-755.31,0.00015999,2]
[420060287,1775640650524,-755.31,0.00015999,2]
[420060288,1775640650534,-755.31,0.00015999,2]
[420060289,1775640650543,-755.31,0.00015999,2]
[420060290,1775640650552,-755.31,0.00015999,2]
[420060291,1775640650561,-755.33706313,0.00015999,2]
[420060292,1775640650570,-568.74,0.00015999,2]
[420060293,1775640650580,-568.74,0.00015999,2]
[420060294,1775640650589,-568.74,0.00015999,2]
[420060295,1775640650599,-568.74,0.00015999,2]
[420060296,1775640650609,-568.74,0.00015999,2]
[420060297,1775640650618,-568.74,0.00015999,2]
[420060298,1775640650627,-568.82574047,0.00015999,2]
[420060299,1775640650637,-153.03603175,0.00016,2]
[420060300,1775640650647,-240.76039255,0.00016,2]
[420060301,1775640650657,-254.97243642,0.00016,2]
[420060302,1775640650667,-257.21753865,0.00016,2]
[420060303,1775640650676,-299.8368581,0.00016,2]
[420060304,1775640650686,-154.96470644,0.00016,2]
[420060305,1775640650696,-246.14760097,0.00016,2]
[420060306,1775640650705,-265.82430715,0.00016,2]
[420060307,1775640650714,-235.51154759,0.00016,2]
[420060308,1775640650724,-253.01547596,0.00016,2]
[420060309,1775640650733,-260.08916634,0.00016,2]
[420060310,1775640650742,-175.09773323,0.00016,2]
[420060311,1775640650751,-214965.21073178,0.00016,2]
[420060312,1775640650760,-2000.0,0.00016,2]
[420060313,1775640650770,-8238433.33613274,0.00016,2]
[420060314,1775640652062,-993.34152341,0.00016,2]
[420060315,1775640652099,-582.57802036,0.00016,2]
[420060316,1775640652146,-539.93551002,0.00016,2]
[420060317,1775640652157,-825.26934686,0.00016,2]
[420060318,1775640652211,-7906.75379404,0.00016,2]
[420060319,1775640652881,-2852.19657638,0.00016,2]
[420060320,1775640652893,-418.82489194,0.00016,2]
[420060321,1775640652905,-4926.23470969,0.00016,2]
[420060322,1775640653042,-482.79510806,0.00016,2]
[420060323,1775640653822,-2112.68772881,0.00016,2]
[420060324,1775640653835,-6476.04433623,0.00016,2]
[420060325,1775640653847,-5642.70196642,0.00016,2]
[420060326,1775640653859,-2011.69999999,0.00016,2]
[420060327,1775640653892,-2216.83393961,0.00016,2]
[420060328,1775640654044,150.0,9.779e-05,2]
[420060329,1775640654188,-1243177.136658,0.00016,2]
[420060330,1775640654201,-5674.61139167,0.00016,2]
[420060331,1775640654213,-1165.00275632,0.00016,2]
[420060332,1775640654245,-444.58999998,0.00016,2]
[420060333,1775640654257,-966.02581709,0.00016,2]
[420060334,1775640654275,-35068.7024931,0.00016,2]
[420060335,1775640654479,10000.01,9.78e-05,2]
[420060336,1775640654503,10000.01,9.78e-05,2]
[420060337,1775640654526,10000.01,9.78e-05,2]
[420060338,1775640654550,3041.7505,9.78e-05,2]
[420060339,1775640668837,156.0,9.78e-05,3]
[420060340,1775640669652,9844.01,9.779e-05,2]
[420060341,1775640669678,10000.01,9.779e-05,2]
[420060342,1775640669703,10000.01,9.779e-05,2]
[420060343,1775640669729,10000.01,9.779e-05,2]
[420060344,1775640669754,10000.01,9.779e-05,2]
[420060345,1775640669782,10000.01,9.779e-05,2]
[420060346,1775640669807,10000.01,9.779e-05,2]
[420060347,1775640669833,10000.01,9.779e-05,2]
[420060348,1775640669858,10000.01,9.779e-05,2]
[420060349,1775640669884,10000.01,9.779e-05,2]
[420060350,1775640678687,-6808.2595,9.779e-05,2]
[420060351,1775640678743,-10000.01,9.779e-05,2]
[420060352,1775640678872,-10000.01,9.779e-05,2]
[420060353,1775640679065,-10000.01,9.779e-05,2]
[420060354,1775640679157,-10000.01,9.779e-05,2]
[420060355,1775640679270,-10000.01,9.779e-05,2]
[420060356,1775640679430,-10000.01,9.779e-05,2]
[420060357,1775640681314,-10000.01,9.779e-05,2]
[420060358,1775640681467,-10000.01,9.779e-05,2]
[420060359,1775640690544,-10000.01,9.779e-05,2]
[420060360,1775640690734,-10000.01,9.779e-05,2]
[420060361,1775640690865,-10000.01,9.779e-05,2]
[420060362,1775640690996,-10000.01,9.779e-05,2]
[420060363,1775640691108,-10000.01,9.779e-05,2]
[420060364,1775640693481,-291.0,9.779e-05,2]
[420060365,1775640693518,-9418.01,9.779e-05,2]
[420060366,1775640694106,-10000.01,9.779e-05,2]
[420060367,1775640699531,-10000.01,9.679e-05,2]
[420060368,1775640699652,-1064.55198245,9.679e-05,2]
[420060369,1775640699692,-7870.9060351,9.779e-05,2]
[420060370,1775640699763,-10000.01,9.779e-05,2]
[420060371,1775640699881,-10000.01,9.779e-05,2]
[420060372,1775640699983,-10000.01,9.779e-05,2]
[420060373,1775640729241,951.284395,7.945e-05,2]
[420060374,1775640802653,2040.74153116,9.679e-05,2]
[420060375,1775640812500,150.0,9.7e-05,2]
[420060376,1775640824963,5950.657058,9.678e-05,2]
[420060377,1775640847513,178.0,9.678e-05,3]
[420060378,1775640850740,4306.437136,9.704e-05,2]
[420060379,1775640863577,5000.0,9.703e-05,2]
[420060380,1775640884006,150.0,9.7e-05,2]
[420060381,1775640885893,365.572864,9.703e-05,2]
[420060382,1775640885917,2641.136328,9.703e-05,2]
[420060383,1775640911244,169.0,9.703e-05,3]
[420060384,1775640912150,155.0,9.703e-05,3]
[420060385,1775640955342,150.0,9.7e-05,2]
[420060386,1775640962526,236.5,9.342e-05,2]
[420060387,1775640988937,150.0,0.00011233,120]
[420060388,1775641027868,150.0,9.7e-05,2]
[420060389,1775641027901,160.0,9.703e-05,3]
[420060390,1775641048046,2500.0,9.679e-05,2]
[420060391,1775641078185,200.0,9.7e-05,2]
[420060392,1775641101218,150.0,9.458e-05,2]
[420060393,1775641111882,150.0,9.7e-05,2]
[420060394,1775641113932,-290.0,9.751e-05,2]
[420060395,1775641113956,-250.0,9.752e-05,2]
[420060396,1775641113979,-1200.0,9.752e-05,2]
[420060397,1775641114003,-300.0,9.752e-05,2]
[420060398,1775641114028,-1200.0,9.752e-05,2]
[420060399,1775641114053,-150.0,9.752e-05,2]
[420060400,1775641114076,-350.22732689,9.752e-05,2]
[420060401,1775641114100,-5000.0,9.753e-05,2]
[420060402,1775641114124,-150.0,9.753e-05,2]
[420060403,1775641114147,-1109.77267311,9.753e-05,2]
[420060404,1775641126283,-2790.22732689,9.753e-05,2]
[420060405,1775641126305,-3341.0,9.753e-05,2]
[420060406,1775641126327,-150.0,9.753e-05,2]
[420060407,1775641126349,-250.0,9.754e-05,2]
[420060408,1775641126372,-150.0,9.762e-05,2]
[420060409,1775641126394,-500.0,9.763e-05,2]
[420060410,1775641126416,-500.0,9.763e-05,2]
[420060411,1775641126437,-150.0,9.763e-05,2]
[420060412,1775641126458,-500.0,9.763e-05,2]
[420060413,1775641126481,-500.0,9.763e-05,2]
[420060414,1775641126503,-500.0,9.763e-05,2]
[420060415,1775641126525,-500.0,9.763e-05,2]
[420060416,1775641126548,-168.77267311,9.763e-05,2]
[420060417,1775641145733,152.0,9.703e-05,3]
[420060418,1775641183392,150.0,9.7e-05,2]
[420060419,1775641199612,3073.8513,9.679e-05,2]
[420060420,1775641205662,2500.0,9.679e-05,2]
[420060421,1775641209962,155.0,9.703e-05,3]
[420060422,1775641216618,153.0,9.703e-05,3]
[420060423,1775641255613,150.0,9.7e-05,2]
[420060424,1775641260305,591.8784273,0.000161,120]
[420060425,1775641281892,1062.7879,9.679e-05,2]
[420060426,1775641291719,153.0,9.703e-05,3]
[420060427,1775641327264,153.0,9.703e-05,3]
[420060431,1775641361618,8631.2221,9.679e-05,2]
[420060432,1775641361642,10000.01,9.679e-05,2]
[420060433,1775641361663,5000.01,9.679e-05,2]
[420060434,1775641361687,10000.01,9.679e-05,2]
[420060435,1775641361709,10000.01,9.679e-05,2]
[420060436,1775641361732,10000.01,9.679e-05,2]
[420060437,1775641361754,10000.01,9.679e-05,2]
[420060438,1775641377701,-289.0,9.679e-05,2]
[420060439,1775641377748,-4035.51,9.679e-05,2]
[420060440,1775641381407,-300.0,9.678e-05,2]
[420060441,1775641381417,-4700.01,9.679e-05,2]
[420060442,1775641387646,-5000.01,9.679e-05,2]
[420060443,1775641389991,-5000.01,9.679e-05,2]
[420060444,1775641394398,-153.0,9.679e-05,3]
[420060445,1775641394716,-4694.01,9.679e-05,2]
[420060446,1775641395896,-1595.7692,9.679e-05,2]
[420060447,1775641395936,-1808.4716,9.679e-05,2]
[420060448,1775641399086,-691.5284,9.679e-05,2]
[420060449,1775641399119,-150.0,9.7e-05,2]
[420060450,1775641411849,3316.9532,9.63e-05,2]
[420060451,1775641414100,-1683.0568,9.63e-05,2]
[420060452,1775641417271,-0.01,9.63e-05,2]
[420060453,1775641417296,-4999.99,9.63e-05,2]
[420060454,1775641420177,-5000.01,9.679e-05,2]
[420060455,1775641423390,-1775.4121,9.679e-05,2]
[420060456,1775641447043,153.0,9.679e-05,3]
[420060457,1775641462831,179.0,6.539e-05,2]
[420060458,1775641463042,177.0,6.539e-05,2]
[420060459,1775641463299,177.0,6.539e-05,2]
[420060460,1775641463544,177.0,6.539e-05,2]
[420060461,1775641464468,254.0,6.539e-05,2]
[420060462,1775641473482,332.1858,9.439e-05,2]
[420060463,1775641476007,-3550.8242,9.439e-05,2]
[420060464,1775641479049,-5000.01,9.439e-05,2]
[420060465,1775641483224,-489.06,9.439e-05,2]
[420060466,1775641483442,-4021.89,9.439e-05,2]
[420060467,1775641511604,153.0,9.439e-05,3]
[420060468,1775641512039,382.7709,9.679e-05,2]
[420060469,1775641530912,470.0,9.679e-05,2]
[420060470,1775641538091,150.0,9.7e-05,2]
[420060471,1775641567816,153.0,9.439e-05,3]
[420060472,1775641577781,1000.0,9.439e-05,2]
[420060473,1775641590736,150.0,9.468e-05,2]
[420060474,1775641609492,150.0,9.7e-05,2]
[420060476,1775641622839,3700.01,9.171e-05,2]
[420060477,1775641626731,-3691.2391,9.171e-05,2]
[420060478,1775641627063,153.0,9.439e-05,3]
[420060479,1775641631134,-5000.01,9.171e-05,2]
[420060480,1775641631516,-3260.7909,9.171e-05,2]
[420060481,1775641647416,5000.01,9.678e-05,2]
[420060482,1775641654096,-5000.01,9.678e-05,2]
[420060483,1775641656218,-5000.01,9.678e-05,2]
[420060484,1775641659377,-5000.01,9.678e-05,2]
[420060485,1775641691694,152.0,9.439e-05,3]
[420060486,1775641693186,-150.0,9.677e-05,2]
[420060487,1775641693212,-289.0,9.677e-05,2]
[420060488,1775641693239,-9561.0,9.678e-05,2]
[420060489,1775641694549,-10000.0,9.678e-05,2]
[420060490,1775641695619,-10000.0,9.678e-05,2]
[420060491,1775641696703,-10000.0,9.678e-05,2]
[420060492,1775641697933,-10000.0,9.678e-05,2]
[420060493,1775641704148,-4000.0,9.678e-05,2]
[420060494,1775641775173,-1200.0,9.667e-05,2]
[420060495,1775641775196,-289.0,9.667e-05,2]
[420060496,1775641775220,-8511.0,9.668e-05,2]
[420060497,1775641782604,-7500.0,9.668e-05,2]
[420060499,1775641831812,1924.47,8.797e-05,2]
[420060551,1775641835563,-300.0,9.667e-05,2]
[420060552,1775641835573,-300.0,9.667e-05,2]
[420060553,1775641835583,-1200.0,9.667e-05,2]
[420060554,1775641835592,-289.0,9.667e-05,2]
[420060555,1775641835602,-250.0,9.668e-05,2]
[420060556,1775641835612,-150.0,9.668e-05,2]
[420060557,1775641835621,-155.0,9.668e-05,3]
[420060558,1775641835631,-152.0,9.668e-05,3]
[420060559,1775641835641,-1268.29980986,9.668e-05,2]
[420060560,1775641835655,-1305.0,9.668e-05,2]
[420060561,1775641835667,-609.8984744,9.668e-05,2]
[420060562,1775641835678,-865.37224422,9.668e-05,2]
[420060563,1775641835691,-1154.38914939,9.668e-05,2]
[420060564,1775641835702,-750.0,9.668e-05,2]
[420060565,1775641835713,-8852.14082767,9.668e-05,2]
[420060566,1775641835725,-970.31793558,9.668e-05,2]
[420060567,1775641835736,-621.94024213,9.668e-05,2]
[420060568,1775641835748,-36396.95551881,9.668e-05,2]
[420060569,1775641835764,-150.0,9.668e-05,2]
[420060570,1775641835774,-219.28053588,9.677e-05,2]
[420060571,1775641835784,-350.88691248,9.677e-05,2]
[420060572,1775641835794,-500.0,9.677e-05,2]
[420060573,1775641835804,-500.0,9.677e-05,2]
[420060574,1775641835813,-958.28926477,9.678e-05,2]
[420060575,1775641835823,-1218426.91679116,9.678e-05,2]
[420060576,1775641835834,-83918.92913086,9.678e-05,2]
[420060577,1775641835846,-40926.08671514,9.678e-05,2]
[420060578,1775641835857,-126517.83400753,9.678e-05,2]
[420060579,1775641835869,-1254.41808677,9.678e-05,2]
[420060580,1775641835881,-250.7070206,9.678e-05,2]
[420060582,1775641838085,-262.3808947,9.668e-05,2]
[420060583,1775641838095,-3114.59026443,9.678e-05,2]
[420060584,1775641838511,-355.710055,9.678e-05,2]
[420060585,1775641838523,-951673.76792851,9.678e-05,2]
[420060586,1775641838534,-150.0,9.7e-05,2]
[420060587,1775641838544,-500.0,9.753e-05,2]
[420060588,1775641838553,-500.0,9.753e-05,2]
[420060589,1775641838562,-200.08326476,9.753e-05,2]
[420060590,1775641838572,-381.23872411,9.753e-05,2]
[420060591,1775641838582,-246.25716228,9.753e-05,2]
[420060592,1775641838591,-500.0,9.753e-05,2]
[420060593,1775641838602,-500.0,9.753e-05,2]
[420060594,1775641838611,-5000.0,9.761e-05,2]
[420060595,1775641838621,-500.0,9.763e-05,2]
[420060596,1775641838631,-500.0,9.763e-05,2]
[420060597,1775641838641,-500.0,9.763e-05,2]
[420060598,1775641838651,-169.66281329,9.763e-05,2]
[420060599,1775641838661,-164.45663059,9.763e-05,2]
[420060600,1775641838670,-170.57896389,9.763e-05,2]
[420060601,1775641838680,-281.88719221,9.763e-05,2]
[420060602,1775641838690,-500.0,9.763e-05,2]
[420060603,1775641838699,-500.0,9.763e-05,2]
[420060604,1775641838709,-500.0,9.763e-05,2]
[420060605,1775641838718,-500.0,9.763e-05,2]
[420060606,1775641838728,-500.0,9.763e-05,2]
[420060607,1775641838737,-500.0,9.763e-05,2]
[420060608,1775641838747,-500.0,9.763e-05,2]
[420060609,1775641838757,-500.0,9.763e-05,2]
[420060610,1775641838767,-500.0,9.763e-05,2]
[420060611,1775641838776,-1000.0,9.763e-05,2]
[420060612,1775641838786,-1001.80981936,9.763e-05,2]
[420060613,1775641838796,-5000.0,9.767e-05,2]
[420060614,1775641838805,-5000.0,9.767e-05,2]
[420060615,1775641838815,-1000.0,9.776e-05,2]
[420060616,1775641838825,-151.0,9.776e-05,2]
[420060617,1775641838835,-500.0,9.777e-05,2]
[420060618,1775641838844,-442.21605325,9.777e-05,2]
[420060619,1775641838855,-500.0,9.777e-05,2]
[420060620,1775641838864,-500.0,9.777e-05,2]
[420060621,1775641838874,-500.0,9.777e-05,2]
[420060622,1775641838884,-500.0,9.777e-05,2]
[420060623,1775641838893,-629.37241367,9.777e-05,2]
[420060624,1775641838904,-500.0,9.777e-05,2]
[420060625,1775641838913,-415.9529749,9.777e-05,2]
[420060626,1775641838923,-326.53871481,9.777e-05,2]
[420060627,1775641838933,-500.0,9.777e-05,2]
[420060628,1775641838942,-500.0,9.777e-05,2]
[420060629,1775641838953,-500.0,9.777e-05,2]
[420060630,1775641838963,-316.43991101,9.777e-05,2]
[420060631,1775641838973,-150.99,9.777e-05,2]
[420060632,1775641838984,-499.99,9.777e-05,2]
[420060633,1775641838994,-500.0,9.777e-05,2]
[420060634,1775641839004,-500.0,9.777e-05,2]
[420060635,1775641839015,-500.0,9.777e-05,2]
[420060636,1775641839025,-500.0,9.777e-05,2]
[420060637,1775641839034,-500.0,9.777e-05,2]
[420060638,1775641839044,-364.24087812,9.777e-05,2]
[420060640,1775641839054,-202.45328362,9.777e-05,2]
[420060643,1775641839064,-339.58516696,9.777e-05,2]
[420060644,1775641839074,-500.0,9.777e-05,2]
[420060645,1775641839084,-793.32,9.778e-05,2]
[420060646,1775641839094,-304.129,9.778e-05,2]
[420060647,1775641839104,-5003.115,9.778e-05,2]
[420060648,1775641839115,-48601.16,9.778e-05,2]
[420060649,1775641839126,-999.99,9.778e-05,2]